bitfinex/quotes_BTCUSD_20230106
["timestamp","ask_amount","ask_price","bid_price","bid_amount"]
[1672965197885,0.64458334,16857.0,16856.0,11.25087434]
[1672965197887,0.46662635,16857.0,16856.0,11.25087434]
[1672965198134,0.82255762,16857.0,16856.0,11.25087434]
[1672965198620,0.46662627,16857.0,16856.0,11.25087434]
[1672965198883,0.46662627,16857.0,16856.0,12.25087434]
[1672965199148,0.46662627,16857.0,16856.0,12.55087434]
[1672965199387,0.46662627,16857.0,16856.0,11.55087434]
[1672965199630,0.46662627,16857.0,16856.0,11.25087434]
[1672965200110,0.46662627,16857.0,16856.0,11.55087434]
[1672965200630,0.46662627,16857.0,16856.0,13.08736737]
[1672965200631,0.02166917,16857.0,16856.0,13.08736737]
[1672965201370,0.02166917,16857.0,16856.0,12.57553172]
[1672965201617,0.02166917,16857.0,16856.0,12.71453172]
[1672965201863,0.02166917,16857.0,16856.0,12.57553172]
[1672965202107,0.02166917,16857.0,16856.0,12.32127172]
[1672965202348,0.02166917,16857.0,16856.0,13.05165456]
[1672965202852,0.02166917,16857.0,16856.0,13.02127172]
[1672965204547,0.02166917,16857.0,16856.0,12.84366761]
[1672965205254,0.02166917,16857.0,16856.0,13.43692761]
[1672965207017,0.02166917,16857.0,16856.0,12.84366761]
[1672965207230,0.02166917,16857.0,16856.0,13.43692761]
[1672965209267,0.02665975,16859.0,16856.0,13.91113172]
[1672965209503,0.02665975,16859.0,16858.0,1.0]
[1672965209715,0.02665975,16859.0,16858.0,4.36514614]
[1672965209938,0.02665975,16859.0,16858.0,4.36524018]
[1672965210155,0.02665975,16859.0,16858.0,11.79883718]
[1672965210400,0.02665975,16859.0,16858.0,11.86524018]
[1672965210845,0.02665975,16859.0,16858.0,12.44428043]
[1672965211541,0.02665975,16859.0,16858.0,12.59743018]
[1672965212675,0.02665975,16859.0,16858.0,13.19062018]
[1672965213386,0.02665975,16859.0,16858.0,13.10403702]
[1672965213612,0.02665975,16859.0,16858.0,12.10403702]
[1672965214052,0.02665975,16859.0,16858.0,13.10403702]
[1672965216197,0.02665975,16859.0,16858.0,12.59743018]
[1672965216926,0.02665975,16859.0,16858.0,13.29375857]
[1672965217374,0.02665975,16859.0,16858.0,12.59743018]
[1672965218256,0.02665975,16859.0,16858.0,12.89402018]
[1672965220032,0.02665975,16859.0,16858.0,12.59743018]
[1672965220477,0.02665975,16859.0,16858.0,13.19062018]
[1672965220689,0.02665975,16859.0,16858.0,12.59743018]
[1672965221397,0.02665975,16859.0,16858.0,13.23543167]
[1672965222900,0.02665975,16859.0,16858.0,12.23543167]
[1672965224173,0.02665975,16859.0,16858.0,11.93543167]
[1672965224464,0.02665975,16859.0,16858.0,12.23543167]
[1672965227082,0.02665975,16859.0,16858.0,13.23543167]
[1672965228161,0.02665975,16859.0,16858.0,11.93543167]
[1672965228436,0.02665975,16859.0,16858.0,12.23543167]
[1672965228996,0.02665975,16859.0,16858.0,13.23543167]
[1672965229237,0.02665975,16859.0,16858.0,12.23543167]
[1672965229517,0.02665975,16859.0,16858.0,13.23543167]
[1672965230068,0.02665975,16859.0,16858.0,12.59743018]
[1672965230328,0.02665975,16859.0,16858.0,13.19062018]
[1672965230803,0.02665975,16859.0,16858.0,13.78238694]
[1672965231345,0.02665975,16859.0,16858.0,13.19062018]
[1672965231599,0.02665975,16859.0,16858.0,13.7981305]
[1672965232379,0.02665975,16859.0,16858.0,13.19062018]
[1672965232677,0.02665975,16859.0,16858.0,13.7643961]
[1672965232888,0.02665975,16859.0,16858.0,13.1712061]
[1672965235266,0.02665975,16859.0,16858.0,13.7643961]
[1672965240956,0.02665975,16859.0,16858.0,13.0643961]
[1672965241973,0.02665975,16859.0,16858.0,13.7643961]
[1672965242232,0.02665975,16859.0,16858.0,13.97397637]
[1672965243031,0.02665975,16859.0,16858.0,13.79637226]
[1672965243512,0.02665975,16859.0,16858.0,13.20318226]
[1672965244839,0.20463403,16859.0,16858.0,13.20318226]
[1672965247850,0.47161685,16859.0,16858.0,11.90318226]
[1672965252461,0.47161685,16859.0,16858.0,11.83677926]
[1672965252723,0.8275482,16859.0,16858.0,11.90318226]
[1672965252972,0.64957392,16859.0,16858.0,11.83677926]
[1672965253329,0.67312674,16859.0,16858.0,1.93294767]
[1672965253505,1.4626711,16859.0,16858.0,1.43294767]
[1672965253764,0.49513875,16859.0,16858.0,1.43294767]
[1672965254033,0.49513875,16859.0,16858.0,1.43489337]
[1672965254298,0.49513875,16859.0,16858.0,0.73294767]
[1672965254560,0.64336657,16859.0,16858.0,0.73294767]
[1672965254830,0.47168822,16859.0,16858.0,1.34374558]
[1672965255082,0.47168822,16859.0,16858.0,1.34405738]
[1672965255411,0.47168822,16859.0,16858.0,1.23489337]
[1672965255646,0.47168822,16859.0,16858.0,1.84405738]
[1672965255922,0.82757277,16859.0,16858.0,1.84405738]
[1672965256192,0.82757277,16859.0,16858.0,1.84600308]
[1672965256977,1.09444211,16859.0,16858.0,1.84600308]
[1672965257262,1.09444211,16859.0,16858.0,9.34600308]
[1672965258015,0.64941364,16859.0,16858.0,9.41240608]
[1672965258772,0.64941364,16859.0,16858.0,9.34600308]
[1672965259515,0.64941364,16859.0,16858.0,9.34405738]
[1672965259986,0.64941364,16859.0,16858.0,9.41046038]
[1672965260776,0.64941364,16859.0,16858.0,9.34424685]
[1672965261555,0.64941364,16859.0,16858.0,9.34405738]
[1672965261815,1.09444211,16859.0,16858.0,9.34573526]
[1672965262053,0.64941364,16859.0,16858.0,10.01441637]
[1672965262311,0.64941364,16859.0,16858.0,9.99649666]
[1672965263363,0.64941364,16859.0,16858.0,10.60804361]
[1672965267198,0.64941364,16859.0,16858.0,10.01485361]
[1672965269001,0.82726425,16859.0,16858.0,10.60804361]
[1672965269542,0.4713797,16859.0,16858.0,10.60804361]
[1672965270067,0.4713797,16859.0,16858.0,10.01485361]
[1672965272357,0.4713797,16859.0,16858.0,10.60804361]
[1672965272622,0.4713797,16859.0,16858.0,11.26763661]
[1672965273435,0.20451036,16859.0,16858.0,11.26763661]
[1672965275344,0.20451036,16859.0,16858.0,12.26763661]
[1672965275596,0.20451036,16859.0,16858.0,11.26763661]
[1672965277214,0.4713797,16859.0,16858.0,11.26763661]
[1672965277455,0.20451036,16859.0,16858.0,11.26763661]
[1672965278672,0.20451036,16859.0,16858.0,12.56763661]
[1672965278906,0.02665975,16859.0,16858.0,12.56763661]
[1672965280147,0.02665975,16859.0,16858.0,13.16082661]
[1672965280430,0.02665975,16859.0,16858.0,13.86082661]
[1672965281850,0.02665975,16859.0,16858.0,13.26763661]
[1672965282565,0.02665975,16859.0,16858.0,12.5989555]
[1672965282818,0.02665975,16859.0,16858.0,13.17855466]
[1672965286114,0.02665975,16859.0,16858.0,12.17855466]
[1672965286900,0.20451036,16859.0,16858.0,12.17855466]
[1672965287147,0.02655657,16859.0,16858.0,13.56974961]
[1672965287397,0.02655657,16859.0,16858.0,14.01224779]
[1672965288944,0.02655657,16859.0,16858.0,13.3921455]
[1672965289670,0.02655657,16859.0,16858.0,13.97458955]
[1672965291358,0.02655657,16859.0,16858.0,13.3921455]
[1672965291616,0.02655657,16859.0,16858.0,14.08923568]
[1672965296147,0.02655657,16859.0,16858.0,14.38582568]
[1672965298909,0.02655657,16859.0,16858.0,14.08923568]
[1672965299130,0.02655657,16859.0,16858.0,13.38923568]
[1672965300118,0.02655657,16859.0,16858.0,14.08923568]
[1672965301383,0.01976957,16859.0,16858.0,14.08923568]
[1672965301640,0.01976957,16859.0,16858.0,13.49604568]
[1672965302356,0.00775457,16859.0,16858.0,13.49604568]
[1672965302608,0.00775457,16859.0,16858.0,12.7989555]
[1672965303379,0.00775457,16859.0,16858.0,13.49019527]
[1672965303865,0.00775457,16859.0,16858.0,12.7989555]
[1672965304336,0.00775457,16859.0,16858.0,13.34959928]
[1672965308346,0.00775457,16859.0,16858.0,13.3921455]
[1672965308597,0.00775457,16859.0,16858.0,12.7989555]
[1672965308848,0.00775457,16859.0,16858.0,12.97655961]
[1672965309107,0.00775457,16859.0,16858.0,13.56974961]
[1672965309628,0.00775457,16859.0,16858.0,13.60574994]
[1672965309883,0.00775457,16859.0,16858.0,12.97655961]
[1672965310140,0.00775457,16859.0,16858.0,13.56974961]
[1672965311390,0.00775457,16859.0,16858.0,13.57824961]
[1672965312320,0.00775457,16859.0,16858.0,13.43924961]
[1672965312541,0.00775457,16859.0,16858.0,13.84459781]
[1672965312789,0.00775457,16859.0,16858.0,13.70559781]
[1672965313063,0.00775457,16859.0,16858.0,13.84459781]
[1672965313401,0.00775457,16859.0,16858.0,14.72111987]
[1672965314420,0.00775457,16859.0,16858.0,13.58320053]
[1672965315224,0.00775457,16859.0,16858.0,13.40559642]
[1672965315479,0.00775457,16859.0,16858.0,13.58320053]
[1672965316500,0.00775457,16859.0,16858.0,13.40559642]
[1672965317026,0.18560518,16859.0,16858.0,13.58320053]
[1672965317309,0.18560518,16859.0,16858.0,13.40559642]
[1672965317542,0.18560518,16859.0,16858.0,13.58320053]
[1672965317796,0.00775457,16859.0,16858.0,13.58320053]
[1672965318701,0.00775457,16859.0,16858.0,14.17639053]
[1672965318929,0.00775457,16859.0,16858.0,13.58320053]
[1672965320659,0.00775457,16859.0,16858.0,12.88320053]
[1672965320936,0.18560518,16859.0,16858.0,12.88320053]
[1672965321211,0.18560518,16859.0,16858.0,12.63919342]
[1672965321720,0.18560518,16859.0,16858.0,13.33919342]
[1672965321944,0.18560518,16859.0,16858.0,13.40559642]
[1672965323272,0.18560518,16859.0,16858.0,13.33919342]
[1672965324009,0.18560518,16859.0,16858.0,13.40559642]
[1672965324235,0.00775457,16859.0,16858.0,13.40559642]
[1672965324494,0.00775457,16859.0,16858.0,13.58320053]
[1672965324757,0.00775457,16859.0,16858.0,13.57401615]
[1672965325249,0.18560518,16859.0,16858.0,13.39641204]
[1672965326258,0.18560518,16859.0,16858.0,13.33000904]
[1672965326485,0.45247452,16859.0,16858.0,13.33000904]
[1672965326708,0.18560518,16859.0,16858.0,13.33000904]
[1672965329242,0.18560518,16859.0,16858.0,13.03000904]
[1672965329504,0.45247452,16859.0,16858.0,13.03000904]
[1672965331807,0.45247452,16859.0,16858.0,12.83000904]
[1672965332610,0.45247452,16859.0,16858.0,12.90489946]
[1672965332858,0.45247452,16859.0,16858.0,13.10489946]
[1672965334360,0.45247452,16859.0,16858.0,13.40489946]
[1672965335593,0.18560518,16859.0,16858.0,13.40489946]
[1672965336919,0.00775457,16859.0,16858.0,13.40489946]
[1672965338222,0.00775457,16859.0,16858.0,13.47130246]
[1672965338987,0.18560518,16859.0,16858.0,13.47130246]
[1672965339726,0.00775457,16859.0,16858.0,13.47130246]
[1672965340718,0.00775457,16859.0,16858.0,13.64890657]
[1672965342233,0.00775457,16859.0,16858.0,12.94890657]
[1672965342485,0.00775457,16859.0,16858.0,12.70489946]
[1672965342745,0.00775457,16859.0,16858.0,12.88250357]
[1672965343232,0.00775457,16859.0,16858.0,13.58250357]
[1672965343478,0.00775457,16859.0,16858.0,13.64890657]
[1672965346555,0.00775457,16859.0,16858.0,13.58250357]
[1672965348104,0.00775457,16859.0,16858.0,13.64890657]
[1672965348361,0.00775457,16859.0,16858.0,13.58250357]
[1672965353385,0.18560518,16859.0,16858.0,13.40489946]
[1672965354708,0.18560518,16859.0,16858.0,13.46029177]
[1672965354967,0.45247452,16859.0,16858.0,13.46029177]
[1672965355246,0.45247452,16859.0,16858.0,13.16029177]
[1672965357270,0.00775457,16859.0,16858.0,13.33789588]
[1672965357565,0.00775457,16859.0,16858.0,13.63789588]
[1672965358118,0.18560518,16859.0,16858.0,13.33789588]
[1672965358379,0.18560518,16859.0,16858.0,13.16029177]
[1672965358630,0.18560518,16859.0,16858.0,13.33789588]
[1672965358879,0.18560518,16859.0,16858.0,13.16029177]
[1672965360018,1.06407552,16859.0,16858.0,12.36542389]
[1672965360540,1.26156251,16859.0,16858.0,9.01624456]
[1672965360810,2.29974498,16859.0,16858.0,0.80774456]
[1672965361089,1.43972164,16859.0,16858.0,8.30774456]
[1672965361344,0.80881176,16859.0,16858.0,8.30774456]
[1672965362353,0.80881176,16859.0,16858.0,8.96549944]
[1672965363383,0.80881176,16859.0,16858.0,8.9676443]
[1672965364466,0.80881176,16859.0,16858.0,8.96549944]
[1672965364956,0.80881176,16859.0,16858.0,8.30774456]
[1672965365231,0.80881176,16859.0,16858.0,8.96549944]
[1672965365489,1.07569779,16859.0,16858.0,8.96549944]
[1672965366263,0.80881176,16859.0,16858.0,8.96549944]
[1672965366763,0.63065934,16859.0,16858.0,8.96549944]
[1672965367827,0.63065934,16859.0,16858.0,8.96560667]
[1672965368086,0.63065934,16859.0,16858.0,8.96549944]
[1672965368087,1.07568781,16859.0,16858.0,8.96549944]
[1672965368595,0.63065934,16859.0,16858.0,8.96549944]
[1672965368843,0.80881176,16859.0,16858.0,8.96549944]
[1672965369581,0.63059573,16859.0,16858.0,8.96549944]
[1672965369830,0.63059573,16859.0,16858.0,8.96560667]
[1672965372543,0.808445,16859.0,16858.0,8.96560667]
[1672965372814,0.808445,16859.0,16858.0,9.66550048]
[1672965373065,0.45241628,16859.0,16858.0,9.66550048]
[1672965373321,0.35241628,16859.0,16858.0,9.66550048]
[1672965375892,0.708445,16859.0,16858.0,9.66550048]
[1672965376157,0.35241628,16859.0,16858.0,9.66550048]
[1672965385106,0.35241628,16859.0,16858.0,11.13460683]
[1672965385366,0.38032003,16860.0,16858.0,11.03029396]
[1672965385616,0.73634875,16860.0,16859.0,1.75645081]
[1672965385878,0.38032003,16860.0,16859.0,2.25645081]
[1672965386392,0.38032003,16860.0,16859.0,9.75645081]
[1672965387177,0.38032003,16860.0,16859.0,9.89545081]
[1672965387690,0.38032003,16860.0,16859.0,10.89545081]
[1672965387944,0.38032003,16860.0,16859.0,9.89545081]
[1672965388195,0.38032003,16860.0,16859.0,10.48860481]
[1672965390263,0.38032003,16860.0,16859.0,9.89545081]
[1672965394716,0.20575302,16860.0,16859.0,9.89545081]
[1672965394950,0.38032003,16860.0,16859.0,9.89545081]
[1672965395229,0.20575302,16860.0,16859.0,9.89545081]
[1672965396246,0.38032003,16860.0,16859.0,9.89545081]
[1672965399464,0.38032003,16860.0,16859.0,9.96184681]
[1672965401700,0.73634875,16860.0,16859.0,9.96184681]
[1672965401956,0.38032003,16860.0,16859.0,9.96184681]
[1672965402461,0.38032003,16860.0,16859.0,9.89545081]
[1672965403956,0.55849948,16860.0,16859.0,9.39545081]
[1672965404456,1.00352795,16860.0,16859.0,9.39545081]
[1672965404708,0.55849948,16860.0,16859.0,9.39545081]
[1672965404965,1.00352795,16860.0,16859.0,9.39538652]
[1672965405252,1.09577652,16860.0,16859.0,9.39538652]
[1672965405514,0.82896094,16860.0,16859.0,9.39538652]
[1672965407027,1.42207994,16860.0,16859.0,9.39538652]
[1672965407278,1.09579255,16860.0,16859.0,9.39538652]
[1672965407530,0.65076408,16860.0,16859.0,9.39538652]
[1672965409558,0.65076408,16860.0,16859.0,9.46178152]
[1672965410308,0.82867119,16860.0,16859.0,9.46178152]
[1672965410561,0.65076408,16860.0,16859.0,9.46178152]
[1672965410815,0.82867125,16860.0,16859.0,10.05493552]
[1672965411313,0.47264253,16860.0,16859.0,9.98854052]
[1672965414288,0.82189528,16861.0,16860.0,0.02735747]
[1672965414534,0.82189528,16861.0,16860.0,1.20769923]
[1672965415045,0.82189528,16861.0,16860.0,8.70769923]
[1672965415807,0.82189528,16861.0,16860.0,8.84769923]
[1672965417400,0.82189528,16861.0,16860.0,8.84780645]
[1672965419170,0.37686681,16861.0,16860.0,8.84780645]
[1672965422171,0.37686681,16861.0,16860.0,9.44092545]
[1672965423132,0.64379653,16861.0,16860.0,9.44092545]
[1672965425708,0.64379653,16861.0,16860.0,10.03487312]
[1672965426755,0.64379653,16861.0,16860.0,9.44175412]
[1672965427861,0.64379653,16861.0,16860.0,10.03487312]
[1672965428061,0.64379653,16861.0,16860.0,10.62799212]
[1672965430113,0.64379653,16861.0,16860.0,10.03487312]
[1672965430384,0.64379653,16861.0,16860.0,10.62799212]
[1672965430898,0.46570273,16861.0,16860.0,10.62799212]
[1672965431908,0.46570273,16861.0,16860.0,10.48799212]
[1672965431909,0.46570273,16861.0,16860.0,10.62699212]
[1672965433889,0.46570273,16861.0,16860.0,10.69338212]
[1672965434165,0.46570273,16861.0,16860.0,10.10026312]
[1672965434946,0.46570273,16861.0,16860.0,10.69338212]
[1672965435212,0.46570273,16861.0,16860.0,10.10026312]
[1672965435977,0.46570273,16861.0,16860.0,10.69338212]
[1672965436234,0.19877301,16861.0,16860.0,10.69338212]
[1672965438062,0.19877301,16861.0,16860.0,10.10026312]
[1672965438550,0.19877301,16861.0,16860.0,10.03387312]
[1672965438813,0.19877301,16861.0,16860.0,10.40026012]
[1672965439080,0.19877301,16861.0,16860.0,10.10026012]
[1672965439582,0.19877301,16861.0,16860.0,10.99337912]
[1672965439839,0.19877301,16861.0,16860.0,10.69337912]
[1672965440069,0.19877301,16861.0,16860.0,10.99337912]
[1672965440875,0.19877301,16861.0,16860.0,10.69337912]
[1672965441930,0.19877301,16861.0,16860.0,10.99337912]
[1672965442168,0.02083809,16861.0,16860.0,10.99337912]
[1672965442382,0.19877301,16861.0,16860.0,10.99337912]
[1672965442632,0.19877301,16861.0,16860.0,10.03387312]
[1672965444382,0.19877301,16861.0,16860.0,10.62699212]
[1672965444870,0.19877301,16861.0,16860.0,11.39337912]
[1672965444871,0.02083809,16861.0,16860.0,11.39337912]
[1672965445123,0.19877301,16861.0,16860.0,11.39337912]
[1672965445382,0.19877301,16861.0,16860.0,11.69337912]
[1672965445642,0.19877301,16861.0,16860.0,11.39337912]
[1672965446151,0.19877301,16861.0,16860.0,11.32699212]
[1672965446680,0.19877301,16861.0,16860.0,11.69337912]
[1672965447945,0.19877301,16861.0,16860.0,11.62699212]
[1672965448423,0.19877301,16861.0,16860.0,2.58057692]
[1672965448676,0.64379653,16861.0,16860.0,1.9406469]
[1672965448921,0.64366336,16861.0,16860.0,1.9406469]
[1672965449173,0.46552375,16861.0,16860.0,1.9406469]
[1672965449420,0.64366336,16861.0,16860.0,1.9406469]
[1672965449929,1.25526436,16861.0,16860.0,1.9406469]
[1672965450799,0.64366336,16861.0,16860.0,1.9406469]
[1672965451214,0.64366336,16861.0,16860.0,9.4406469]
[1672965452243,0.64366336,16861.0,16860.0,9.44075412]
[1672965453761,1.08869183,16861.0,16860.0,9.44075412]
[1672965454012,1.08867854,16861.0,16860.0,9.44075412]
[1672965454277,1.08867852,16861.0,16860.0,9.44075412]
[1672965454510,0.82176211,16861.0,16860.0,9.44075412]
[1672965454776,0.64364993,16861.0,16860.0,9.44075412]
[1672965455053,1.0886784,16861.0,16860.0,9.44075412]
[1672965455303,0.82176211,16861.0,16860.0,9.44075412]
[1672965457211,0.6436579,16861.0,16860.0,9.44075412]
[1672965457728,1.0613289,16861.0,16860.0,9.41339665]
[1672965457976,0.61630043,16861.0,16860.0,9.41339665]
[1672965460876,0.79440464,16861.0,16860.0,9.41339665]
[1672965461384,0.61630594,16861.0,16860.0,9.41339665]
[1672965461658,1.06133441,16861.0,16860.0,9.41339665]
[1672965462198,0.79440464,16861.0,16860.0,9.41339665]
[1672965464108,0.61629992,16861.0,16860.0,9.41339665]
[1672965467571,0.26692375,16861.0,16860.0,9.41339665]
[1672965467866,0.1779429,16861.0,16860.0,10.79823846]
[1672965468157,0.1779429,16861.0,16860.0,12.09823846]
[1672965468680,0.1779429,16861.0,16860.0,11.09823846]
[1672965469234,0.1779429,16861.0,16860.0,11.79823846]
[1672965469774,0.1779429,16861.0,16860.0,12.79823846]
[1672965471127,0.79451282,16862.0,16861.0,0.5]
[1672965471395,0.61656992,16862.0,16861.0,2.34032787]
[1672965471978,0.79447873,16862.0,16861.0,9.84032787]
[1672965472240,0.79447873,16862.0,16861.0,10.43341187]
[1672965472495,0.44510256,16862.0,16861.0,11.1894917]
[1672965473908,0.61656992,16862.0,16861.0,3.0964077]
[1672965474173,0.79446874,16862.0,16861.0,3.0964077]
[1672965474429,0.44509257,16862.0,16861.0,3.0964077]
[1672965476299,0.44509257,16862.0,16861.0,3.7558707]
[1672965476528,0.44509257,16862.0,16861.0,3.1627867]
[1672965476815,0.44509257,16862.0,16861.0,3.0964077]
[1672965477629,0.44509257,16862.0,16861.0,3.6894917]
[1672965477885,0.44509257,16862.0,16861.0,11.1894917]
[1672965478158,0.44509257,16862.0,16861.0,11.2558707]
[1672965478403,0.17816882,16862.0,16861.0,10.93879087]
[1672965478709,0.17816882,16862.0,16861.0,11.50403067]
[1672965478924,0.17816882,16862.0,16861.0,11.20403067]
[1672965479179,0.17816882,16862.0,16861.0,11.50403067]
[1672965480247,0.17816882,16862.0,16861.0,11.20403067]
[1672965480833,0.17816882,16862.0,16861.0,11.43765167]
[1672965481088,0.17816882,16862.0,16861.0,11.20403067]
[1672965481381,0.17816882,16862.0,16861.0,11.13765167]
[1672965481636,0.17816882,16862.0,16861.0,10.54456767]
[1672965482117,0.17816882,16862.0,16861.0,10.61094667]
[1672965482378,0.17816882,16862.0,16861.0,10.04570687]
[1672965482649,0.00027,16862.0,16861.0,10.64729087]
[1672965482904,0.00027,16862.0,16861.0,10.94729087]
[1672965483386,0.00027,16862.0,16861.0,11.35420687]
[1672965483982,0.00027,16862.0,16861.0,11.94729087]
[1672965484151,0.00027,16862.0,16861.0,11.51210282]
[1672965484425,0.00027,16862.0,16861.0,11.21210282]
[1672965484717,0.00027,16862.0,16861.0,11.51210282]
[1672965484938,0.00027,16862.0,16861.0,11.94729087]
[1672965485185,0.00027,16862.0,16861.0,12.54037487]
[1672965485696,0.00027,16862.0,16861.0,11.94729087]
[1672965485972,0.00027,16862.0,16861.0,11.80829087]
[1672965486211,0.00027,16862.0,16861.0,11.94729087]
[1672965486478,0.00027,16862.0,16861.0,11.80829087]
[1672965486721,0.00027,16862.0,16861.0,11.94729087]
[1672965489812,0.00027,16862.0,16861.0,12.54037487]
[1672965490063,0.00027,16862.0,16861.0,13.24037487]
[1672965491096,0.00027,16862.0,16861.0,12.64729087]
[1672965492404,0.00027,16862.0,16861.0,12.27026077]
[1672965492895,0.00027,16862.0,16861.0,11.64729087]
[1672965494741,0.00027,16862.0,16861.0,12.16623233]
[1672965496588,0.00027,16862.0,16861.0,12.15773233]
[1672965497971,0.00027,16862.0,16861.0,11.15773233]
[1672965500140,0.00027,16862.0,16861.0,11.45773233]
[1672965500375,0.00027,16862.0,16861.0,11.15773233]
[1672965501955,0.17816882,16862.0,16861.0,10.49826933]
[1672965504069,0.00027,16862.0,16861.0,10.49826933]
[1672965504579,0.17816882,16862.0,16861.0,10.49826933]
[1672965505066,0.17816882,16862.0,16861.0,10.57241187]
[1672965505327,0.00027,16862.0,16861.0,11.93879087]
[1672965505596,0.00027,16862.0,16861.0,12.50080846]
[1672965506140,0.00027,16862.0,16861.0,11.93879087]
[1672965506889,0.00027,16862.0,16861.0,12.55517479]
[1672965507183,0.00027,16862.0,16861.0,13.25517479]
[1672965508505,0.00027,16862.0,16861.0,12.64729087]
[1672965508755,0.00027,16862.0,16861.0,13.41797898]
[1672965509011,0.00027,16862.0,16861.0,12.82489498]
[1672965510178,0.00027,16862.0,16861.0,13.41797898]
[1672965510960,0.00027,16862.0,16861.0,14.11044772]
[1672965511215,0.00027,16862.0,16861.0,13.51736372]
[1672965511493,0.00027,16862.0,16861.0,13.81390372]
[1672965512831,0.00027,16862.0,16861.0,13.12143498]
[1672965513087,0.00027,16862.0,16861.0,12.42143498]
[1672965513346,0.00027,16862.0,16861.0,12.12489498]
[1672965513604,0.00027,16862.0,16861.0,12.82489498]
[1672965514156,0.00027,16862.0,16861.0,11.82489498]
[1672965514451,0.00027,16862.0,16861.0,12.82489498]
[1672965514982,0.00027,16862.0,16861.0,13.48351601]
[1672965515830,0.00027,16862.0,16861.0,12.48351601]
[1672965516097,0.00027,16862.0,16861.0,13.3059119]
[1672965516353,0.00027,16862.0,16861.0,12.82489498]
[1672965516917,0.00027,16862.0,16861.0,13.41797898]
[1672965517445,0.00027,16862.0,16861.0,12.82489498]
[1672965518749,0.00027,16862.0,16861.0,13.48083744]
[1672965520078,0.00027,16862.0,16861.0,12.82489498]
[1672965520650,0.00027,16862.0,16861.0,13.58694471]
[1672965521117,0.00027,16862.0,16861.0,12.50238515]
[1672965521378,0.00027,16862.0,16861.0,13.50682409]
[1672965521915,0.00027,16862.0,16861.0,13.39990809]
[1672965522432,0.00027,16862.0,16861.0,11.80682409]
[1672965522683,0.00027,16862.0,16861.0,11.62921998]
[1672965524505,0.00027,16862.0,16861.0,12.03169704]
[1672965524778,0.00027,16862.0,16861.0,12.80238515]
[1672965525015,0.00027,16862.0,16861.0,12.20930115]
[1672965525277,0.00027,16862.0,16861.0,12.80238515]
[1672965526065,0.00027,16862.0,16861.0,13.50238515]
[1672965526308,0.00027,16862.0,16861.0,13.58645497]
[1672965526589,0.00027,16862.0,16861.0,14.17953897]
[1672965526864,0.00027,16862.0,16861.0,12.90930115]
[1672965527137,0.00027,16862.0,16861.0,13.49511424]
[1672965527918,0.00027,16862.0,16861.0,14.08819824]
[1672965528172,0.00027,16862.0,16861.0,13.50238515]
[1672965529464,0.00027,16862.0,16861.0,14.16095607]
[1672965532191,0.00027,16862.0,16861.0,12.86787207]
[1672965533184,0.00027,16862.0,16861.0,13.56787207]
[1672965534222,0.00027,16862.0,16861.0,12.90930115]
[1672965534471,0.00027,16862.0,16861.0,11.8095576]
[1672965534735,0.00027,16862.0,16861.0,11.63195349]
[1672965535213,0.00027,16862.0,16861.0,11.33195349]
[1672965535468,0.00027,16862.0,16861.0,11.63195349]
[1672965535729,0.17816882,16862.0,16861.0,11.33195349]
[1672965536080,0.00027,16862.0,16861.0,11.33195349]
[1672965536231,0.00027,16862.0,16861.0,11.63195349]
[1672965536485,0.00027,16862.0,16861.0,12.63195349]
[1672965536730,0.00027,16862.0,16861.0,12.69833249]
[1672965537533,0.00027,16862.0,16861.0,12.63195349]
[1672965537767,0.00027,16862.0,16861.0,12.69833249]
[1672965538276,0.00027,16862.0,16861.0,12.63195349]
[1672965539027,0.00027,16862.0,16861.0,12.69833249]
[1672965539539,0.00027,16862.0,16861.0,12.63195349]
[1672965539792,0.17816882,16862.0,16861.0,12.63195349]
[1672965540053,0.00027,16862.0,16861.0,12.69833249]
[1672965540306,0.00027,16862.0,16861.0,11.69833249]
[1672965540556,0.00027,16862.0,16861.0,11.63195349]
[1672965540813,0.00027,16862.0,16861.0,11.33195349]
[1672965540814,0.17816882,16862.0,16861.0,11.33195349]
[1672965541558,0.44509257,16862.0,16861.0,11.33195349]
[1672965542064,0.17816882,16862.0,16861.0,11.33195349]
[1672965542314,0.17816882,16862.0,16861.0,11.63195349]
[1672965544333,0.17816882,16862.0,16861.0,11.33195349]
[1672965545348,0.17816882,16862.0,16861.0,11.63195349]
[1672965546144,0.17816882,16862.0,16861.0,12.63195349]
[1672965546350,0.17816882,16862.0,16861.0,11.63195349]
[1672965546581,0.17816882,16862.0,16861.0,11.33195349]
[1672965547588,0.44509257,16862.0,16861.0,10.73886949]
[1672965547846,1.05669357,16862.0,16861.0,10.73886949]
[1672965548111,1.05669357,16862.0,16861.0,10.14578549]
[1672965548364,1.22817092,16862.0,16861.0,9.47915004]
[1672965548607,0.61655587,16862.0,16861.0,9.47915004]
[1672965548862,1.67318569,16862.0,16861.0,9.47915004]
[1672965549110,1.40627564,16862.0,16861.0,9.47915004]
[1672965549364,1.67318628,16862.0,16861.0,9.47915004]
[1672965549632,1.22815781,16862.0,16861.0,9.47915004]
[1672965550907,0.61655681,16862.0,16861.0,9.47915004]
[1672965551221,0.79445082,16862.0,16861.0,9.47915004]
[1672965551413,0.79445082,16862.0,16861.0,10.07223404]
[1672965551664,1.40605182,16862.0,16861.0,10.07223404]
[1672965552180,0.44507465,16862.0,16861.0,9.47915004]
[1672965552448,1.05667565,16862.0,16861.0,9.47915004]
[1672965552693,1.22815781,16862.0,16861.0,9.47915004]
[1672965552948,0.61655681,16862.0,16861.0,9.47915004]
[1672965553191,1.22815781,16862.0,16861.0,9.47915004]
[1672965553711,0.61655681,16862.0,16861.0,9.47915004]
[1672965554471,1.22815781,16862.0,16861.0,9.47904519]
[1672965555490,0.61655681,16862.0,16861.0,9.47904519]
[1672965556003,1.40598782,16862.0,16861.0,9.47904519]
[1672965556300,0.44501065,16862.0,16861.0,9.47904519]
[1672965556779,1.05661165,16862.0,16861.0,9.47904519]
[1672965558394,1.05661165,16862.0,16861.0,10.02694936]
[1672965558661,0.17810001,16862.0,16861.0,10.02694936]
[1672965560550,0.17810001,16862.0,16861.0,11.02694936]
[1672965561772,0.17810001,16862.0,16861.0,11.62003336]
[1672965561773,0.00027,16862.0,16861.0,11.92003336]
[1672965562015,0.00027,16862.0,16861.0,12.51311736]
[1672965562452,0.00027,16862.0,16861.0,11.85982116]
[1672965562667,0.00027,16862.0,16861.0,11.92620016]
[1672965562904,0.00027,16862.0,16861.0,11.62620016]
[1672965563142,0.00014581,16862.0,16861.0,11.85982116]
[1672965563355,0.00014581,16862.0,16861.0,11.92620016]
[1672965563576,0.00014581,16862.0,16861.0,11.85982116]
[1672965564016,0.00014581,16862.0,16861.0,11.92620016]
[1672965568543,0.00014581,16862.0,16861.0,11.85982116]
[1672965568802,0.00014581,16862.0,16861.0,11.92620016]
[1672965569817,0.00014581,16862.0,16861.0,11.55982116]
[1672965572700,0.00014581,16862.0,16861.0,11.85982116]
[1672965572952,0.00014581,16862.0,16861.0,11.55982116]
[1672965573975,0.17797582,16862.0,16861.0,11.55982116]